bitfinex-derivatives/quotes_BTCF0:USTF0_20250722
["timestamp","ask_amount","ask_price","bid_price","bid_amount"]
[1753204975187,0.6711549,118790.0,118780.0,0.3191153]
[1753204975380,0.7014949,118790.0,118780.0,0.3191153]
[1753204975985,0.7014949,118790.0,118780.0,0.6799153]
[1753204976487,0.62629427,118790.0,118780.0,0.6799153]
[1753204976687,0.62629427,118790.0,118780.0,0.66609583]
[1753204977480,0.61778707,118790.0,118780.0,0.66609583]
[1753204977686,0.61778707,118790.0,118780.0,1.28901583]
[1753204978893,0.61778707,118790.0,118780.0,1.57901583]
[1753204979194,0.61778707,118790.0,118780.0,1.35721182]
[1753204979389,0.61778707,118790.0,118780.0,2.18028868]
[1753204979390,0.1762911,118790.0,118780.0,2.18028868]
[1753204979691,0.008,118790.0,118780.0,2.18028868]
[1753204979888,0.1762901,118790.0,118780.0,2.34865668]
[1753204980388,0.1762901,118790.0,118780.0,1.67721182]
[1753204980590,0.2214801,118790.0,118780.0,1.35689182]
[1753204980791,0.2518201,118790.0,118780.0,1.69689182]
[1753204980990,0.2518201,118790.0,118780.0,1.35689182]
[1753204981189,0.008,118790.0,118780.0,1.67689182]
[1753204981390,0.008,118790.0,118780.0,2.17996868]
[1753204982392,0.008,118790.0,118780.0,2.34833668]
[1753204983495,0.0002,118800.0,118790.0,0.3191001]
[1753204983696,0.71563443,118810.0,118800.0,0.304846]
[1753204983995,1.0814004,118810.0,118800.0,0.941766]
[1753204985689,1.0834004,118810.0,118800.0,0.77369]
[1753204986188,0.06564046,118810.0,118800.0,2.14584286]
[1753204986396,0.04819,118810.0,118800.0,2.14584286]
[1753204986593,0.003,118810.0,118800.0,1.642766]
[1753204986795,0.003,118810.0,118800.0,2.14584286]
[1753204991498,0.0002,118820.0,118810.0,0.3020518]
[1753204991701,0.07273,118830.0,118820.0,0.3225677]
[1753204991899,0.43849597,118830.0,118820.0,1.76892456]
[1753204992104,0.39490597,118830.0,118820.0,1.76892456]
[1753204992294,0.56313947,118830.0,118820.0,0.9458477]
[1753204992494,0.60672947,118830.0,118820.0,0.9458477]
[1753204993006,0.44049597,118830.0,118820.0,1.3066477]
[1753204993201,0.44049597,118830.0,118820.0,1.6766477]
[1753204993503,0.44049597,118830.0,118820.0,1.3066477]
[1753204993705,0.60872947,118830.0,118820.0,1.3066477]
[1753204995096,0.36806597,118830.0,118820.0,1.3066477]
[1753204995402,0.36806597,118830.0,118820.0,1.6166477]
[1753204995601,0.36906597,118830.0,118820.0,1.6166477]
[1753204995801,0.36906597,118830.0,118820.0,2.11972456]
[1753204996505,0.0031,118830.0,118820.0,2.11972456]
[1753204998505,0.0001,118830.0,118820.0,2.11972456]
[1753204998902,0.1683342,118830.0,118820.0,2.11972456]
[1753204999102,0.53430017,118830.0,118820.0,2.11972456]
[1753204999406,0.36606597,118830.0,118820.0,2.11972456]
[1753205000507,0.53430017,118830.0,118820.0,2.11972456]
[1753205000715,0.36606597,118830.0,118820.0,2.11972456]
[1753205001708,0.53430017,118830.0,118820.0,2.11972456]
[1753205001908,0.36606597,118830.0,118820.0,2.11972456]
[1753205002108,0.53430027,118830.0,118820.0,1.49644456]
[1753205002310,0.59435067,118830.0,118820.0,1.6159277]
[1753205003204,0.59435067,118830.0,118820.0,2.04442817]
[1753205003611,0.42611637,118830.0,118820.0,2.04442817]
[1753205003811,0.42611637,118830.0,118820.0,1.6159277]
[1753205003812,0.59435067,118830.0,118820.0,1.6159277]
[1753205004010,0.53430027,118830.0,118820.0,2.04442817]
[1753205004420,0.57789027,118830.0,118820.0,2.04442817]
[1753205004617,0.40965597,118830.0,118820.0,2.04442817]
[1753205004819,0.57789027,118830.0,118820.0,2.04442817]
[1753205005718,1.36719074,118830.0,118820.0,0.6325677]
[1753205005913,1.36719074,118830.0,118820.0,0.66490489]
[1753205005914,1.39603074,118830.0,118820.0,0.66490489]
[1753205006119,1.40905074,118830.0,118820.0,0.65819]
[1753205006322,1.40905074,118830.0,118820.0,0.03555]
[1753205006921,0.98707027,118830.0,118820.0,0.2037984]
[1753205007116,1.41557074,118830.0,118820.0,0.2037984]
[1753205007322,1.48939339,118830.0,118820.0,0.8273184]
[1753205007919,1.48939339,118830.0,118820.0,0.8501584]
[1753205008119,1.48939339,118830.0,118820.0,0.8637484]
[1753205008520,1.48939339,118830.0,118820.0,0.9460884]
[1753205011126,0.97405027,118830.0,118820.0,0.9460884]
[1753205012326,0.2472843,118830.0,118820.0,0.9460884]
[1753205012527,0.53430027,118830.0,118820.0,1.68176631]
[1753205012722,0.0001,118830.0,118820.0,2.18408943]
[1753205015225,0.1683344,118830.0,118820.0,2.18408943]
[1753205015527,0.1683344,118830.0,118820.0,1.54056943]
[1753205015726,0.1683344,118830.0,118820.0,2.16340943]
[1753205016327,0.1683344,118830.0,118820.0,1.66108631]
[1753205016621,0.1683344,118830.0,118820.0,1.66208631]
[1753205016821,0.1683344,118830.0,118820.0,2.16540943]
[1753205017527,0.0001,118830.0,118820.0,2.16540943]
[1753205018531,0.1683344,118830.0,118820.0,2.16540943]
[1753205019028,0.0001,118830.0,118820.0,2.16540943]
[1753205019727,0.0001,118830.0,118820.0,1.54256943]
[1753205019927,0.0002,118840.0,118830.0,0.3197843]
[1753205020122,0.36255459,118850.0,118840.0,0.3197702]
[1753205020322,0.35387176,118850.0,118840.0,0.9426902]
[1753205020526,0.41584223,118850.0,118840.0,1.289678]
[1753205020727,0.38504223,118850.0,118840.0,1.669678]
[1753205021119,0.55324823,118850.0,118840.0,1.669678]
[1753205021627,0.55424823,118850.0,118840.0,1.669678]
[1753205021920,0.64507336,118850.0,118840.0,1.289878]
[1753205022525,0.64507336,118850.0,118840.0,0.929078]
[1753205022829,0.64607336,118850.0,118840.0,1.289878]
[1753205023128,0.64607336,118850.0,118840.0,1.290518]
[1753205023725,0.64607336,118850.0,118840.0,1.35834628]
[1753205023930,0.64507336,118850.0,118840.0,0.73458628]
[1753205024126,0.64407336,118850.0,118840.0,1.01291848]
[1753205024523,0.64407336,118850.0,118840.0,1.37371848]
[1753205025226,0.64407336,118850.0,118840.0,1.37271848]
[1753205026225,0.64407336,118850.0,118840.0,1.37171848]
[1753205026731,0.64407336,118850.0,118840.0,1.37151848]
[1753205026928,0.65685336,118850.0,118840.0,1.37151848]
[1753205027334,0.65685336,118850.0,118840.0,1.01071848]
[1753205027525,0.65685336,118850.0,118840.0,0.84181828]
[1753205027731,0.65685336,118850.0,118840.0,1.01003848]
[1753205028725,0.64407336,118850.0,118840.0,1.37083848]
[1753205029029,0.70412376,118850.0,118840.0,1.01003848]
[1753205029229,0.64407336,118850.0,118840.0,1.01003848]
[1753205029631,1.07247592,118850.0,118840.0,1.01003848]
[1753205029832,1.14530632,118850.0,118840.0,1.01003848]
[1753205030027,0.77934035,118850.0,118840.0,1.01003848]
[1753205030229,1.14530632,118850.0,118840.0,1.01003848]
[1753205030428,0.71690376,118850.0,118840.0,1.01003848]
[1753205030633,1.14530632,118850.0,118840.0,1.01003848]
[1753205031033,0.71928995,118850.0,118840.0,1.01003848]
[1753205031235,0.6377771,118850.0,118840.0,1.01003848]
[1753205031737,1.06617966,118850.0,118840.0,1.01003848]
[1753205032333,1.06617966,118850.0,118840.0,1.00915858]
[1753205034639,1.06617966,118850.0,118840.0,0.38759858]
[1753205034840,1.06617966,118850.0,118840.0,0.96141858]
[1753205035338,1.06617966,118850.0,118840.0,1.00835858]
[1753205035838,0.6377771,118850.0,118840.0,1.00835858]
[1753205036039,1.06617966,118850.0,118840.0,1.00835858]
[1753205037238,1.42697966,118850.0,118840.0,0.14163828]
[1753205037434,1.44572409,118850.0,118840.0,0.03284]
[1753205038538,0.1682203,118840.0,118830.0,0.2651995]
[1753205038740,2.03827883,118840.0,118830.0,0.2659813]
[1753205039941,2.03827883,118840.0,118830.0,0.2239258]
[1753205040141,2.03815883,118840.0,118830.0,0.2239258]
[1753205040342,0.99023627,118840.0,118830.0,0.2239258]
[1753205040542,1.24855627,118840.0,118830.0,0.3297758]
[1753205040740,0.62943627,118840.0,118830.0,0.75817836]
[1753205041340,0.99023627,118840.0,118830.0,0.3297758]
[1753205041540,0.61665627,118840.0,118830.0,0.75817836]
[1753205041941,0.61665627,118840.0,118830.0,1.13317557]
[1753205042142,0.61665627,118840.0,118830.0,0.78317557]
[1753205042444,0.61665627,118840.0,118830.0,1.15317557]
[1753205043043,0.39676597,118840.0,118830.0,1.15317557]
[1753205043242,0.56498617,118840.0,118830.0,1.15317557]
[1753205043643,0.39676597,118840.0,118830.0,1.15317557]
[1753205043845,0.56498617,118840.0,118830.0,1.15317557]
[1753205044044,0.64032079,118840.0,118830.0,1.13017836]
[1753205044245,0.68553079,118840.0,118830.0,1.13017836]
[1753205044439,0.61019617,118840.0,118830.0,1.13017836]
[1753205044636,0.61665617,118840.0,118830.0,0.7017758]
[1753205044845,0.61665617,118840.0,118830.0,1.13017836]
[1753205045245,0.69199079,118840.0,118830.0,1.13017836]
[1753205046344,0.52377059,118840.0,118830.0,1.13017836]
[1753205046551,0.68553099,118840.0,118830.0,1.13017836]
[1753205046750,0.51731059,118840.0,118830.0,1.13017836]
[1753205047751,0.68553089,118840.0,118830.0,1.68757836]
[1753205048049,0.69199089,118840.0,118830.0,1.68757836]
[1753205048245,0.69199089,118840.0,118830.0,1.2591758]
[1753205048442,0.69199089,118840.0,118830.0,1.68757836]
[1753205048651,0.69199089,118840.0,118830.0,1.2591758]
[1753205048852,0.69199089,118840.0,118830.0,1.68757836]
[1753205049652,0.69199089,118840.0,118830.0,1.07017836]
[1753205049957,0.70435089,118840.0,118830.0,0.9381758]
[1753205050358,0.70435089,118840.0,118830.0,1.36657836]
[1753205051156,0.69199099,118840.0,118830.0,1.73657836]
[1753205051556,0.69199099,118840.0,118830.0,1.3081758]
[1753205051756,0.69199099,118840.0,118830.0,1.73657836]
[1753205053960,0.61665637,118840.0,118830.0,1.73657836]
[1753205054453,0.44843597,118840.0,118830.0,1.73657836]
[1753205054655,0.44843597,118840.0,118830.0,1.73613836]
[1753205054852,0.39676597,118840.0,118830.0,1.73613836]
[1753205055056,0.56498647,118840.0,118830.0,1.73613836]
[1753205055359,0.39676597,118840.0,118830.0,1.73613836]
[1753205055559,0.39676597,118840.0,118830.0,1.76100514]
[1753205055960,0.56498627,118840.0,118830.0,1.76100514]
[1753205056160,0.39676597,118840.0,118830.0,1.76100514]
[1753205056660,0.56498627,118840.0,118830.0,1.76100514]
[1753205056958,0.60766627,118840.0,118830.0,1.76100514]
[1753205057256,1.41584883,118840.0,118830.0,0.14282678]
[1753205057462,1.41584883,118840.0,118830.0,0.9307045]
[1753205057862,0.98744627,118840.0,118830.0,0.9307045]
[1753205058061,0.61428627,118840.0,118830.0,1.35910706]
[1753205058458,0.61428627,118840.0,118830.0,1.35810706]
[1753205059059,0.61428627,118840.0,118830.0,1.67810706]
[1753205059762,0.61428627,118840.0,118830.0,1.2487045]
[1753205059963,0.61428627,118840.0,118830.0,1.67710706]
[1753205059964,0.43944597,118840.0,118830.0,1.67710706]
[1753205060163,0.60766627,118840.0,118830.0,1.67710706]
[1753205060367,0.0308,118840.0,118830.0,1.67710706]
[1753205060564,0.56498637,118840.0,118830.0,1.67710706]
[1753205061067,0.60766637,118840.0,118830.0,1.2487045]
[1753205061265,0.60766637,118840.0,118830.0,1.67810706]
[1753205061564,0.60766637,118840.0,118830.0,1.67910706]
[1753205061965,0.60766637,118840.0,118830.0,1.06314706]
[1753205062166,0.61428637,118840.0,118830.0,1.67910706]
[1753205062768,0.61428637,118840.0,118830.0,1.06314706]
[1753205063067,1.40348893,118840.0,118830.0,0.9306645]
[1753205063269,1.11015428,118840.0,118830.0,0.2440445]
[1753205063466,2.09204025,118840.0,118830.0,0.03484]
[1753205064066,2.09204025,118840.0,118830.0,0.2030746]
[1753205064568,2.09204025,118840.0,118830.0,0.2430446]
[1753205064769,2.09204025,118840.0,118830.0,0.2851946]
[1753205065770,2.09204025,118840.0,118830.0,0.3137446]
[1753205068068,1.47612025,118840.0,118830.0,0.3137446]
[1753205068276,2.09204025,118840.0,118830.0,0.3137446]
[1753205069072,1.66363769,118840.0,118830.0,0.3137446]
[1753205069271,2.09204025,118840.0,118830.0,0.3137446]
[1753205070869,1.47612025,118840.0,118830.0,0.3137446]
[1753205071066,1.23020637,118840.0,118830.0,1.12214716]
[1753205071271,0.2483204,118840.0,118830.0,1.09214716]
[1753205071471,0.67455769,118840.0,118830.0,1.35806716]
[1753205071882,1.03535769,118840.0,118830.0,0.9296646]
[1753205072373,1.46376025,118840.0,118830.0,0.9296646]
[1753205072873,1.46376025,118840.0,118830.0,0.9306646]
[1753205073069,1.10296025,118840.0,118830.0,0.9316646]
[1753205073270,0.67455769,118840.0,118830.0,0.9316646]
[1753205073674,1.10296025,118840.0,118830.0,0.9316646]
[1753205074373,0.68691769,118840.0,118830.0,0.9316646]
[1753205074672,1.11532025,118840.0,118830.0,0.9316646]
[1753205074872,0.68691769,118840.0,118830.0,0.9316646]
[1753205075173,1.11532025,118840.0,118830.0,0.9316646]
[1753205075370,0.68691769,118840.0,118830.0,0.9316646]
[1753205075567,1.11532025,118840.0,118830.0,0.9316646]
[1753205075972,1.47612025,118840.0,118830.0,0.9316646]
[1753205076465,1.47612025,118840.0,118830.0,0.9316645]
[1753205077775,1.04771769,118840.0,118830.0,0.9316645]
[1753205077975,1.47612025,118840.0,118830.0,0.9316645]
[1753205078170,1.04771769,118840.0,118830.0,0.3157445]
[1753205078376,1.47612025,118840.0,118830.0,0.9315445]
[1753205079877,1.47612025,118840.0,118830.0,0.9305445]
[1753205080272,1.04771769,118840.0,118830.0,1.2805445]
[1753205080776,0.68691769,118840.0,118830.0,1.2805445]
[1753205081678,0.67455769,118840.0,118830.0,1.2795445]
[1753205083480,0.61428637,118840.0,118830.0,1.2805445]
[1753205083679,0.61428637,118840.0,118830.0,1.2815445]
[1753205084080,0.63283718,118850.0,118830.0,1.74768656]
[1753205084283,1.20131935,118850.0,118840.0,0.74409296]
[1753205084478,1.20111935,118850.0,118840.0,0.3156904]
[1753205084879,1.62952191,118850.0,118840.0,0.3156904]
[1753205086080,1.64140191,118850.0,118840.0,0.14747]
[1753205086286,1.21299935,118850.0,118840.0,0.9313704]
[1753205086585,1.64140191,118850.0,118840.0,0.99925056]
[1753205087686,1.21299935,118850.0,118840.0,0.99925056]
[1753205087884,1.64140191,118850.0,118840.0,0.99925056]
[1753205088279,1.28060191,118850.0,118840.0,0.99925056]
[1753205088484,1.64140191,118850.0,118840.0,0.99925056]
[1753205088986,1.64140191,118850.0,118840.0,0.99917056]
[1753205089187,1.64140191,118850.0,118840.0,0.38357056]
[1753205089386,1.64140191,118850.0,118840.0,0.99917056]
[1753205091284,1.56606729,118850.0,118840.0,0.98531802]
[1753205091584,1.67153575,118850.0,118840.0,0.98531802]
[1753205091986,1.25869319,118850.0,118840.0,0.98531802]
[1753205092187,1.68709575,118850.0,118840.0,0.98531802]
[1753205093589,1.62629672,118850.0,118840.0,0.98531802]
[1753205094090,1.59623953,118850.0,118840.0,0.98531802]
[1753205095389,1.52082826,118850.0,118840.0,0.98531802]
[1753205096696,1.0924257,118850.0,118840.0,0.98531802]
[1753205096993,1.52082826,118850.0,118840.0,0.98531802]
[1753205097293,0.6776911,118850.0,118840.0,1.77372058]
[1753205098296,0.6356373,118850.0,118840.0,1.77372058]
[1753205098496,0.69595869,118850.0,118840.0,1.77372058]
[1753205098696,0.6356373,118850.0,118840.0,1.77372058]
[1753205098894,0.6356373,118850.0,118840.0,1.41372058]
[1753205099392,0.69595664,118850.0,118840.0,1.41472058]
[1753205099697,0.32999067,118850.0,118840.0,1.73572058]
[1753205099892,0.16178447,118850.0,118840.0,1.73572058]
[1753205100097,0.13118934,118850.0,118840.0,1.73572058]
[1753205100495,0.29939554,118850.0,118840.0,1.73572058]
[1753205100797,0.30791791,118850.0,118840.0,0.98699802]
[1753205101096,0.33015791,118850.0,118840.0,0.37175802]
[1753205101393,0.33015791,118850.0,118840.0,0.98699802]
[1753205101587,0.77044047,118850.0,118840.0,0.98699802]
[1753205102196,0.34203791,118850.0,118840.0,0.98699802]
[1753205102394,0.33015791,118850.0,118840.0,0.98699802]
[1753205102591,0.75856047,118850.0,118840.0,0.37175802]
[1753205102797,0.77044047,118850.0,118840.0,0.98695802]
[1753205102999,0.71984113,118850.0,118840.0,0.37175802]
[1753205103194,2.0617671,118850.0,118840.0,0.08797762]
[1753205103393,2.0617671,118850.0,118840.0,0.02009746]
[1753205103596,2.0617671,118850.0,118840.0,0.002]
[1753205103900,0.04987,118840.0,118820.0,0.04557]
[1753205104089,2.11358018,118830.0,118820.0,0.04557]
[1753205104399,2.47438018,118830.0,118820.0,0.04557]
[1753205104905,2.47437231,118830.0,118820.0,0.03191]
[1753205105601,2.04592975,118830.0,118820.0,0.03191]
[1753205105802,2.47433231,118830.0,118820.0,0.2011575]
[1753205106003,2.47433231,118830.0,118820.0,0.03291]
[1753205107906,2.04592975,118830.0,118820.0,0.03291]
[1753205108105,2.47429231,118830.0,118820.0,0.03291]
[1753205109208,1.85921231,118830.0,118820.0,0.2351075]
[1753205109505,2.47433231,118830.0,118820.0,0.2351075]
[1753205109706,2.47433231,118830.0,118820.0,0.2361075]
[1753205110596,2.47433231,118830.0,118820.0,0.06786]
[1753205111005,2.04592975,118830.0,118820.0,0.2361075]
[1753205111298,1.85921231,118830.0,118820.0,0.2361075]
[1753205111510,0.53125525,118830.0,118820.0,0.3153875]
[1753205111707,0.53125525,118830.0,118820.0,1.12379006]
[1753205111708,1.24234937,118830.0,118820.0,1.12379006]
[1753205112209,1.24234937,118830.0,118820.0,0.74379006]
[1753205112708,1.24234937,118830.0,118820.0,0.6653875]
[1753205112904,1.24238937,118830.0,118820.0,0.3153875]
[1753205113304,1.24238937,118830.0,118820.0,0.6253875]
[1753205113506,1.24238937,118830.0,118820.0,0.3153875]
[1753205113707,1.24238937,118830.0,118820.0,0.6753875]
[1753205114004,0.2391034,118830.0,118820.0,0.74379006]
[1753205114206,0.2391034,118830.0,118820.0,1.10379006]
[1753205115010,0.07087,118830.0,118820.0,1.10379006]
[1753205115206,0.2391034,118830.0,118820.0,1.10379006]
[1753205115408,0.07087,118830.0,118820.0,1.10379006]
[1753205115805,0.2391046,118830.0,118820.0,1.10379006]
[1753205117512,0.1958648,118830.0,118820.0,1.1287538]
[1753205118812,0.02763,118830.0,118820.0,1.1287538]
[1753205119111,0.02763,118830.0,118820.0,1.19526022]
[1753205119407,0.02763,118830.0,118820.0,0.76685766]
[1753205119408,0.1958648,118830.0,118820.0,0.76685766]
[1753205119611,0.1958648,118830.0,118820.0,1.19526022]
[1753205120312,0.02763,118830.0,118820.0,1.19526022]
[1753205120608,0.02763,118830.0,118820.0,1.55606022]
[1753205120808,0.0002,118840.0,118830.0,0.3147855]
[1753205121013,0.07289,118850.0,118840.0,0.3147713]
[1753205121210,0.76684998,118860.0,118850.0,0.3022371]
[1753205121409,1.13261595,118860.0,118850.0,0.3147571]
[1753205121611,1.25855479,118860.0,118850.0,0.3147571]
[1753205121811,1.27003479,118860.0,118850.0,0.3147571]
[1753205122011,1.69843735,118860.0,118850.0,0.3147571]
[1753205122312,1.69843735,118860.0,118850.0,0.3127571]
[1753205122313,1.70702222,118860.0,118850.0,0.3127571]
[1753205122708,1.71002222,118860.0,118850.0,0.3127571]
[1753205124112,1.71875222,118860.0,118850.0,0.3127571]
[1753205124312,1.23005038,118860.0,118850.0,0.3127571]
[1753205124512,1.73386421,118860.0,118850.0,0.2989455]
[1753205124712,1.73086421,118860.0,118850.0,0.2989455]
[1753205125313,1.30246165,118860.0,118850.0,0.2989455]
[1753205125614,1.73086421,118860.0,118850.0,0.2989455]
[1753205126517,2.34558421,118860.0,118850.0,0.2989455]
[1753205126715,2.34558421,118860.0,118850.0,0.3147571]
[1753205127020,2.27017294,118860.0,118850.0,0.3147571]
[1753205131316,2.27017294,118860.0,118850.0,0.14655]
[1753205131515,0.217057,118850.0,118840.0,0.8581041]
[1753205131715,1.07603553,118850.0,118840.0,1.0906241]
[1753205132018,1.07603553,118850.0,118840.0,0.5768141]
[1753205132718,1.06730553,118850.0,118840.0,0.5768141]
[1753205132920,0.63890297,118850.0,118840.0,0.5768141]
[1753205134022,1.13627155,118850.0,118840.0,0.5778141]
[1753205134322,1.07603553,118850.0,118840.0,0.5778141]
[1753205134717,1.07086956,118850.0,118840.0,0.4350492]
[1753205135021,1.5122468,118850.0,118840.0,0.2025292]
[1753205135222,0.2170712,118840.0,118830.0,0.62161085]
[1753205135424,2.07033847,118840.0,118830.0,0.21875215]
[1753205135715,2.07033847,118840.0,118830.0,0.05052385]
[1753205136121,2.07033847,118840.0,118830.0,0.03671083]
[1753205136320,2.07033847,118840.0,118830.0,0.20494613]
[1753205136321,2.07029847,118840.0,118830.0,0.20494613]
[1753205137022,2.07029847,118840.0,118830.0,0.21746613]
[1753205137321,2.14570974,118840.0,118830.0,0.21746613]
[1753205137517,2.07029847,118840.0,118830.0,0.23889613]
[1753205137719,2.13053426,118840.0,118830.0,0.31817613]
[1753205137917,2.130534,118840.0,118830.0,0.31817613]
[1753205138115,2.07029847,118840.0,118830.0,0.31817613]
[1753205138517,0.2766754,118830.0,118820.0,0.34526582]
[1753205138717,1.43184393,118830.0,118820.0,0.38732802]
[1753205138917,1.43184393,118830.0,118820.0,0.3208216]
[1753205139415,1.49208869,118830.0,118820.0,0.3208216]
[1753205139717,1.49208869,118830.0,118820.0,0.3218216]
[1753205139920,1.49208869,118830.0,118820.0,0.2376986]
[1753205140218,1.49208869,118830.0,118820.0,0.04764]
[1753205140423,1.49208869,118830.0,118820.0,0.2027495]
[1753205140820,1.49208869,118830.0,118820.0,0.2158895]
[1753205141021,1.49208869,118830.0,118820.0,0.2178895]
[1753205141824,1.49208869,118830.0,118820.0,0.2047495]
[1753205143624,1.49208869,118830.0,118820.0,0.6396195]
[1753205143824,1.67788613,118830.0,118820.0,0.6965795]
[1753205144025,1.61764137,118830.0,118820.0,0.34158676]
[1753205145325,2.04604393,118830.0,118820.0,0.27117676]
[1753205145525,2.04604393,118830.0,118820.0,0.26470676]
[1753205147231,1.61764137,118830.0,118820.0,0.27117676]
[1753205147529,2.04584393,118830.0,118820.0,0.34158676]
[1753205147826,1.61744137,118830.0,118820.0,0.34158676]
[1753205148528,2.04584393,118830.0,118820.0,0.34158676]
[1753205149728,1.61744137,118830.0,118820.0,0.34158676]
[1753205150028,1.2514754,118830.0,118820.0,0.34158676]
[1753205150224,1.23744137,118830.0,118820.0,1.10998932]
[1753205150430,0.2386354,118830.0,118820.0,1.10998932]
[1753205150831,0.2574954,118830.0,118820.0,1.47078932]
[1753205151329,0.2574954,118830.0,118820.0,0.76998932]
[1753205151520,1.06575796,118830.0,118820.0,0.27117676]
[1753205151725,1.06575796,118830.0,118820.0,0.34158676]
[1753205151926,1.43172393,118830.0,118820.0,0.34158676]
[1753205152234,1.43172393,118830.0,118820.0,0.3165795]
[1753205152529,1.43172393,118830.0,118820.0,0.2396995]
[1753205152727,1.49196869,118830.0,118820.0,0.0365]
[1753205153024,1.49196869,118830.0,118820.0,0.003]
[1753205153228,0.29208993,118820.0,118810.0,0.03401576]
[1753205153529,2.06105846,118820.0,118810.0,0.03401576]
[1753205154132,2.12130322,118820.0,118810.0,0.03401576]
[1753205154429,2.06105846,118820.0,118810.0,0.03601576]
[1753205154629,2.18744981,118820.0,118810.0,0.01926961]
[1753205154830,0.2098876,118800.0,118790.0,0.06391254]
[1753205155023,2.02813613,118800.0,118790.0,0.38721084]
[1753205155531,1.59973357,118800.0,118790.0,0.48590084]
[1753205155731,0.97810357,118800.0,118790.0,0.48590084]
[1753205156233,0.99448654,118800.0,118790.0,0.49090084]
[1753205157231,0.99448654,118800.0,118790.0,0.46589424]
[1753205158029,0.62852057,118800.0,118790.0,0.46589424]
[1753205158234,0.99448654,118800.0,118790.0,0.46589424]
[1753205158429,1.4228891,118800.0,118790.0,0.22719254]
[1753205158630,1.4228891,118800.0,118790.0,0.19891254]
[1753205158830,1.4228891,118800.0,118790.0,0.18164]
[1753205159030,1.4228891,118800.0,118790.0,0.0405]
[1753205159234,1.44146384,118800.0,118790.0,0.0405]
[1753205159434,1.44146384,118800.0,118790.0,0.007]
[1753205160232,1.01306128,118800.0,118790.0,0.2219318]
[1753205160429,2.05502384,118800.0,118790.0,0.2936618]
[1753205160634,1.00515128,118800.0,118790.0,0.6606218]
[1753205161025,1.00515128,118800.0,118790.0,1.08902436]
[1753205161224,1.00515128,118800.0,118790.0,1.47479014]
[1753205161225,0.64435128,118800.0,118790.0,1.47479014]
[1753205161430,0.22427531,118800.0,118790.0,2.08831014]
[1753205161627,0.18685234,118800.0,118790.0,2.08831014]
[1753205162028,0.18685234,118800.0,118790.0,1.65990758]
[1753205162433,0.18685234,118800.0,118790.0,2.08831014]
[1753205162833,0.18685234,118800.0,118790.0,2.06334436]
[1753205163131,0.25725234,118800.0,118790.0,2.06334436]
[1753205163927,0.26991234,118800.0,118790.0,2.06334436]
[1753205164127,0.26991234,118800.0,118790.0,1.6349418]
[1753205164331,0.26991234,118800.0,118790.0,1.2741418]
[1753205164836,0.18685234,118800.0,118790.0,2.06334436]
[1753205165136,0.26991234,118800.0,118790.0,1.70254436]
[1753205165629,0.26991234,118800.0,118790.0,1.3040218]
[1753205165835,0.26991234,118800.0,118790.0,1.2948218]
[1753205166028,0.26991234,118800.0,118790.0,1.31977865]
[1753205168841,0.26991234,118800.0,118790.0,1.2948218]
[1753205169235,0.26991234,118800.0,118790.0,1.72322436]
[1753205169940,0.26991234,118800.0,118790.0,1.2948218]
[1753205170138,0.26991234,118800.0,118790.0,1.72322436]
[1753205172442,0.26991234,118800.0,118790.0,2.05322436]
[1753205172639,0.26991234,118800.0,118790.0,1.72322436]
[1753205173340,0.26991234,118800.0,118790.0,2.06322436]
[1753205174041,0.26991234,118800.0,118790.0,1.2948218]
[1753205174240,0.26991234,118800.0,118790.0,1.72322436]
[1753205174540,0.2513376,118800.0,118790.0,2.03322436]
[1753205175838,0.2513376,118800.0,118790.0,2.04322436]
[1753205177443,0.1972276,118800.0,118790.0,2.04322436]
[1753205178743,0.1972276,118800.0,118790.0,2.10322436]
[1753205178946,0.1972276,118800.0,118790.0,1.72322436]
[1753205179142,0.1972276,118800.0,118790.0,2.07322436]
[1753205180645,0.1972276,118800.0,118790.0,1.6448218]
[1753205180844,0.1972276,118800.0,118790.0,2.07322436]
[1753205182146,0.44124473,118810.0,118800.0,0.2230976]
[1753205182346,0.8070107,118810.0,118800.0,0.6415676]
[1753205183241,0.8070107,118810.0,118800.0,0.6435676]
[1753205183645,0.8070107,118810.0,118800.0,0.6475676]
[1753205183940,0.74676594,118810.0,118800.0,0.6475676]
[1753205185248,0.74676594,118810.0,118800.0,0.3175676]
[1753205187249,1.1751685,118810.0,118800.0,0.3175676]
[1753205187549,1.5359685,118810.0,118800.0,0.3175676]
[1753205189051,1.17000253,118810.0,118800.0,0.3175676]
[1753205189251,1.5359685,118810.0,118800.0,0.9298876]
[1753205190453,1.10756594,118810.0,118800.0,0.9298876]
[1753205190750,1.5359685,118810.0,118800.0,0.9298876]
[1753205191053,1.1751685,118810.0,118800.0,0.9298876]
[1753205191451,0.70469704,118810.0,118800.0,0.9298876]
[1753205191648,0.66262814,118810.0,118800.0,1.76324847]
[1753205191948,0.58983903,118820.0,118810.0,0.3115534]
[1753205192145,0.24702119,118820.0,118810.0,1.08995596]
[1753205192349,0.24702119,118820.0,118810.0,1.45075596]
[1753205192551,0.24702119,118820.0,118810.0,0.6723534]
[1753205192748,0.32312757,118820.0,118810.0,0.3115534]
[1753205193054,1.1279361,118820.0,118810.0,0.9237134]
[1753205193351,1.1279361,118820.0,118810.0,0.9257134]
[1753205193953,1.4887361,118820.0,118810.0,0.9257134]
[1753205194153,1.43502134,118820.0,118810.0,0.9255934]
[1753205194348,1.49553772,118820.0,118810.0,0.14529]
[1753205194553,2.12247261,118820.0,118810.0,0.07366]
[1753205194756,2.12247261,118820.0,118810.0,0.2429234]
[1753205194948,2.12247261,118820.0,118810.0,0.2162834]
[1753205195349,2.12247261,118820.0,118810.0,0.3145534]
[1753205195851,2.04706134,118820.0,118810.0,0.3145534]
[1753205196555,2.04694134,118820.0,118810.0,0.3145534]
[1753205197157,1.61853878,118820.0,118810.0,0.3145534]
[1753205197356,2.04041134,118820.0,118810.0,0.3145534]
[1753205197551,2.10089864,118820.0,118810.0,0.3145534]
[1753205198055,2.10742864,118820.0,118810.0,0.3145534]
[1753205198446,1.67249608,118820.0,118810.0,0.3145534]
[1753205198748,2.10089864,118820.0,118810.0,0.3145534]
[1753205200356,2.10688864,118820.0,118810.0,0.3145534]
[1753205201559,1.67848608,118820.0,118810.0,0.3145534]
[1753205201759,2.10688864,118820.0,118810.0,0.3145534]
[1753205203059,1.67249608,118820.0,118810.0,0.3145534]
[1753205203259,2.10089864,118820.0,118810.0,0.3145534]
[1753205203860,2.10666864,118820.0,118810.0,0.3145534]
[1753205205761,2.08814761,118820.0,118810.0,0.3145534]
[1753205206362,1.65974505,118820.0,118810.0,0.3145534]
[1753205206559,2.08814761,118820.0,118810.0,0.3145534]
[1753205209161,2.08814761,118820.0,118810.0,0.2429234]
[1753205209359,2.08814761,118820.0,118810.0,0.07466]
[1753205209561,2.08814761,118820.0,118810.0,0.2364334]
[1753205211566,2.08814761,118820.0,118810.0,0.2756134]
[1753205211868,2.08814761,118820.0,118810.0,0.2819134]
[1753205212068,1.65974505,118820.0,118810.0,0.2819134]
[1753205212366,2.08814761,118820.0,118810.0,0.2819134]
[1753205212761,1.65974505,118820.0,118810.0,0.2819134]